fUST/lending_fUST_20240429
["ID","MTS","AMOUNT","RATE_DAILY","PERIOD"]
[324877697,1714391441467,-151.47429953,0.00027465,2]
[324877698,1714391441476,-1000.0,0.00027496,2]
[324877699,1714391441484,-805.49448618,0.000275,17]
[324877700,1714391441493,-222.43361259,0.00027584,2]
[324877701,1714391441502,-151.0,0.0002761,9]
[324877702,1714391441511,-153.79833288,0.00027641,2]
[324877703,1714391441521,-1152.0,0.0002767,2]
[324877704,1714391441531,-999.0,0.00027671,6]
[324877705,1714391441540,-247.39497151,0.00027845,2]
[324877706,1714391441550,-156.18617836,0.0002791,2]
[324877707,1714391441558,-222.43361259,0.00027953,2]
[324877708,1714391441567,-151.47429953,0.00027971,2]
[324877709,1714391441576,-839.70557191,0.0002798,2]
[324877711,1714391441586,-151.47429953,0.00027999,2]
[324877712,1714391441595,-424.03324128,0.00028,2]
[324877713,1714391441605,-504.24371511,0.00028,2]
[324877714,1714391441614,-166.666666,0.00028038,2]
[324877716,1714391441623,-153.79833288,0.00028109,2]
[324877718,1714391441632,-839.70557191,0.00028134,2]
[324877719,1714391441642,-247.39497151,0.00028182,2]
[324877720,1714391441651,-2405.9576,0.00028209,30]
[324877721,1714391441660,-1031.51043822,0.00028225,2]
[324877722,1714391441669,-151.47429953,0.00028258,2]
[324877723,1714391441679,-153.79833288,0.00028266,2]
[324877724,1714391441688,-151.47429953,0.00028267,2]
[324877725,1714391441697,-222.43361259,0.00028268,2]
[324877726,1714391441708,-156.18617836,0.00028332,2]
[324877727,1714391441788,-839.70557191,0.00028379,2]
[324877728,1714391441798,-620.0,0.00028381,2]
[324877729,1714391441807,-247.39497151,0.00028398,2]
[324877730,1714391441817,-839.70557191,0.00028453,2]
[324877731,1714391441827,-675.0,0.00028493,2]
[324877732,1714391441837,-168.373609,0.00028493,2]
[324877733,1714391441847,-168.373609,0.00028493,31]
[324877734,1714391441856,-168.373609,0.00028493,61]
[324877735,1714391441865,-168.373609,0.00028493,90]
[324877736,1714391441875,-168.373609,0.00028493,120]
[324877737,1714391441884,-153.79833288,0.00028526,2]
[324877738,1714391441893,-156.18617836,0.00028568,2]
[324877739,1714391441902,-151.47429953,0.0002865,2]
[324877740,1714391441912,-166.666666,0.00028679,2]
[324877741,1714391441922,-222.43361259,0.00028712,2]
[324877742,1714391441931,-222.43361259,0.00028763,2]
[324877743,1714391441940,-500.0,0.00028767,10]
[324877744,1714391441949,-999.0,0.00028767,8]
[324877745,1714391441958,-222.43361259,0.00028799,2]
[324877746,1714391441967,-156.18617836,0.00028801,2]
[324877747,1714391441976,-247.39497151,0.0002889,2]
[324877748,1714391441986,-839.70557191,0.00028897,2]
[324877749,1714391441995,-3505.23099754,0.000289,2]
[324877750,1714391442004,-222.43361259,0.00028933,2]
[324877751,1714391442013,-151.47429953,0.00029002,2]
[324877752,1714391442022,-151.47429953,0.00029006,2]
[324877753,1714391442031,-151.47429953,0.00029035,2]
[324877754,1714391442041,-222.43361259,0.00029154,2]
[324877755,1714391442051,-151.47429953,0.0002916,2]
[324877756,1714391442060,-153.79833288,0.00029186,2]
[324877757,1714391442069,-151.47429953,0.00029188,2]
[324877758,1714391442079,-156.18617836,0.00029228,2]
[324877759,1714391442091,-222.43361259,0.00029258,2]
[324877760,1714391442100,-158.20865679,0.00029298,2]
[324877761,1714391442110,-166.666666,0.00029321,2]
[324877762,1714391442119,-247.39497151,0.00029344,2]
[324877763,1714391442129,-222.43361259,0.00029351,2]
[324877764,1714391442138,-839.70557191,0.00029359,2]
[324877765,1714391442148,-153.79833288,0.00029372,2]
[324877766,1714391442157,-153.79833288,0.00029411,2]
[324877767,1714391442166,-839.70557191,0.00029464,2]
[324877768,1714391442176,-153.79833288,0.00029465,2]
[324877769,1714391442185,-153.79833288,0.00029485,2]
[324877770,1714391442195,-839.70557191,0.00029607,2]
[324877771,1714391442204,-247.39497151,0.00029615,2]
[324877772,1714391442213,-839.70557191,0.00029641,2]
[324877773,1714391442222,-156.18617836,0.00029677,2]
[324877774,1714391442231,-247.39497151,0.00029711,2]
[324877775,1714391442240,-839.70557191,0.00029725,2]
[324877776,1714391442249,-222.43361259,0.00029737,2]
[324877777,1714391442258,-620.0,0.00029801,2]
[324877778,1714391442268,-151.47429953,0.00029833,2]
[324877779,1714391442277,-999.0,0.00029863,10]
[324877780,1714391442287,-10065.98069961,0.000299,2]
[324877781,1714391442296,-247.39497151,0.00029909,2]
[324877782,1714391442306,-166.666666,0.00029962,2]
[324877783,1714391442318,-154.76784823,0.0003,4]
[324877784,1714391442327,-154.76784823,0.0003,4]
[324877785,1714391442337,-154.76784823,0.0003,4]
[324877786,1714391442347,-1329.78267311,0.0003,4]
[324877787,1714391442356,-223.0,0.0003,2]
[324877788,1714391442365,-247.39497151,0.00030006,7]
[324877789,1714391442374,-10000.0,0.00030018,3]
[324877790,1714391442385,-153.79833288,0.00030057,7]
[324877791,1714391442395,-839.70557191,0.00030107,7]
[324877792,1714391442406,-151.47429953,0.00030131,7]
[324877793,1714391442416,-500.0,0.00030136,10]
[324877794,1714391442425,-402.56689138,0.00030137,2]
[324877795,1714391442436,-247.39497151,0.00030226,7]
[324877796,1714391442446,-156.18617836,0.00030232,7]
[324877797,1714391442458,-151.47429953,0.00030276,7]
[324877798,1714391442467,-247.39497151,0.00030323,7]
[324877799,1714391442476,-300.0,0.00030338,2]
[324877800,1714391442486,-1613.0,0.00030437,2]
[324877801,1714391442496,-156.18617836,0.0003057,7]
[324877802,1714391442505,-166.666666,0.00030603,2]
[324877803,1714391442515,-156.18617836,0.00030641,7]
[324877804,1714391442525,-222.43361259,0.00030688,7]
[324877805,1714391442536,-153.79833288,0.00030698,7]
[324877806,1714391442547,-153.79833288,0.00030741,7]
[324877807,1714391442557,-247.39497151,0.00030806,7]
[324877808,1714391442568,-151.47429953,0.0003084,7]
[324877809,1714391442577,-247.39497151,0.00030895,7]
[324877810,1714391442589,-153.79833288,0.0003093,7]
[324877811,1714391442600,-156.18617836,0.00030956,7]
[324877812,1714391442610,-999.0,0.00030958,12]
[324877813,1714391442620,-177.75,0.00031,3]
[324877814,1714391442630,-222.43361259,0.00031025,7]
[324877815,1714391442640,-1375.188556,0.000311,7]
[324877816,1714391442648,-156.18617836,0.00031157,7]
[324877817,1714391442657,-153.79833288,0.00031173,7]
[324877818,1714391442667,-1000.0,0.00031231,2]
[324877819,1714391442677,-153.79833288,0.00031273,7]
[324877820,1714391442687,-222.43361259,0.0003128,7]
[324877821,1714391442699,-1000.0,0.00031284,2]
[324877822,1714391442720,-153.79833288,0.00031284,7]
[324877823,1714391442742,-620.0,0.00031291,2]
[324877824,1714391442764,-839.70557191,0.00031318,7]
[324877825,1714391442775,-839.70557191,0.0003139,7]
[324877826,1714391442784,-1000.0,0.00031423,2]
[324877827,1714391442793,-1000.0,0.00031469,2]
[324877828,1714391442802,-500.0,0.00031506,10]
[324877829,1714391442812,-839.70557191,0.00031523,7]
[324877830,1714391442823,-247.39497169,0.00031546,7]
[324877831,1714391442832,-1000.0,0.000316,7]
[324877832,1714391442844,-839.70557191,0.00031602,7]
[324877833,1714391442853,-222.43361259,0.0003165,7]
[324877834,1714391442862,-3899.0,0.000317,2]
[324877835,1714391442872,-1000.0,0.00031712,2]
[324877836,1714391442882,-252.56123453,0.00031713,2]
[324877837,1714391442892,-151.47429962,0.00031747,7]
[324877838,1714391442902,-839.70557195,0.00031759,7]
[324877839,1714391442911,-150.5,0.00031773,35]
[324877840,1714391442921,-150.5,0.00031783,35]
[324877841,1714391442930,-381.0,0.000318,4]
[324877842,1714391442939,-169.366558,0.000318,2]
[324877843,1714391442949,-418.23752853,0.000318,2]
[324877844,1714391442958,-418.23752853,0.000318,2]
[324877845,1714391442967,-418.23752853,0.000318,2]
[324877847,1714391442977,-418.23752853,0.000318,2]
[324877849,1714391442987,-418.23752853,0.000318,2]
[324877851,1714391442996,-418.23752853,0.000318,2]
[324877852,1714391443005,-418.23752853,0.000318,2]
[324877854,1714391443014,-418.23752853,0.000318,2]
[324877856,1714391443024,-418.23752853,0.000318,2]
[324877858,1714391443033,-418.23752853,0.000318,2]
[324877860,1714391443043,-418.23752853,0.000318,2]
[324877862,1714391443052,-418.23752853,0.000318,2]
[324877872,1714391443131,-418.23752853,0.000318,2]
[324877874,1714391443141,-418.23752853,0.000318,2]
[324877876,1714391443150,-418.23752853,0.000318,2]
[324877879,1714391443160,-418.23752853,0.000318,2]
[324877883,1714391443169,-418.23752853,0.000318,2]
[324877886,1714391443179,-418.23752853,0.000318,2]
[324877889,1714391443188,-418.23752853,0.000318,2]
[324877892,1714391443197,-418.23752,0.000318,2]
[324877894,1714391443206,-197.52613622,0.00031829,2]
[324877896,1714391443215,-165.3645345,0.00031829,4]
[324877898,1714391443225,-500.0,0.00031829,2]
[324877900,1714391443235,-150.77383924,0.00031835,2]
[324877902,1714391443245,-151.0,0.00031847,2]
[324877904,1714391443255,-1092.826854,0.00031847,2]
[324877906,1714391443264,-1092.826854,0.00031847,2]
[324877909,1714391443274,-151.0,0.00031847,2]
[324877912,1714391443283,-151.0,0.00031847,2]
[324877915,1714391443293,-190.869089,0.00031847,2]
[324877917,1714391443302,-190.869089,0.00031847,2]
[324877919,1714391443313,-151.0,0.00031847,2]
[324877920,1714391443325,-575.374773,0.00031847,2]
[324877921,1714391443337,-575.374773,0.00031847,2]
[324877922,1714391443346,-151.0,0.00031847,2]
[324877923,1714391443356,-302.016416,0.00031847,2]
[324877924,1714391443368,-1000.812377,0.00031847,2]
[324877925,1714391443378,-302.016416,0.00031847,2]
[324877927,1714391443387,-1000.812377,0.00031847,2]
[324877929,1714391443399,-151.0,0.00031847,2]
[324877931,1714391443409,-151.0,0.00031847,2]
[324877933,1714391443418,-151.0,0.00031847,2]
[324877934,1714391443428,-151.0,0.00031847,2]
[324877935,1714391443438,-151.0,0.00031847,2]
[324877936,1714391443449,-615.913097,0.00031847,2]
[324877937,1714391443459,-151.0,0.00031847,2]
[324877938,1714391443468,-615.913097,0.00031847,2]
[324877939,1714391443478,-10404.19028844,0.00031849,2]
[324877940,1714391443488,-300.0,0.00031849,2]
[324877942,1714391443498,-781.06244036,0.00031849,2]
[324877944,1714391443507,-286.46486769,0.00031849,2]
[324877946,1714391443517,-4086.40688436,0.00031849,2]
[324877947,1714391443525,-315.38778369,0.00031849,2]
[324877949,1714391443535,-281.03689603,0.00031849,2]
[324877950,1714391443544,-4073.02760276,0.00031849,2]
[324877955,1714391443646,-501.98208771,0.00031849,2]
[324877956,1714391443657,-5362.86975965,0.00031849,2]
[324877957,1714391443666,-2707.20944558,0.00031849,2]
[324877958,1714391443675,-151.92987492,0.00031849,2]
[324877959,1714391443684,-3780.28201097,0.00031849,2]
[324877960,1714391443772,-500.0,0.0001997,2]
[324877961,1714391443781,-500.0,0.0001997,2]
[324877962,1714391443791,-500.0,0.0001997,2]
[324877963,1714391443801,-500.0,0.0001997,2]
[324877964,1714391443810,-502.08260851,0.0001997,2]
[324877965,1714391443819,-4932.56784564,0.00031849,2]
[324878315,1714392360875,300.0,0.00014728,2]
[324878316,1714392361589,420.0,0.00016201,2]
[324878317,1714392420659,300.0,0.00014728,2]
[324878318,1714392421334,69.34841559,0.00016201,2]
[324878369,1714392632738,-189.36782433,0.00018676,2]
[324878371,1714392632747,-166.666666,0.00018677,2]
[324878373,1714392632762,-1168.41033251,0.000189,2]
[324878375,1714392632773,-5794.99327144,0.00019,2]
[324878377,1714392632782,-239.19602788,0.00019177,2]
[324878379,1714392632792,-500.0,0.00019178,2]
[324878381,1714392632801,-286.439693,0.00019178,2]
[324878394,1714392632810,-612.79547991,0.00019178,2]
[324878397,1714392632930,-160.703891,0.00019178,2]
[324878399,1714392632939,-161.972289,0.00019178,2]
[324878400,1714392632948,-160.810903,0.00019178,2]
[324878403,1714392632958,-153.43131253,0.00019799,2]
[324878405,1714392632967,-300.0,0.0001987,2]
[324878407,1714392632977,-307.2223827,0.00019871,2]
[324878408,1714392632986,-2617.22772065,0.00019898,2]
[324878411,1714392632995,-3117.34507208,0.00019998,2]
[324878412,1714392633008,-500.0,0.00019998,2]
[324878415,1714392633018,-500.0,0.00019998,2]
[324878416,1714392633027,-500.0,0.00019998,2]
[324878418,1714392633036,-500.0,0.00019998,2]
[324878420,1714392633045,-500.0,0.00019998,2]
[324878423,1714392633054,-500.0,0.00019998,2]
[324878424,1714392633063,-500.0,0.00019998,2]
[324878426,1714392633072,-500.0,0.00019998,2]
[324878428,1714392633081,-500.0,0.00019998,2]
[324878430,1714392633090,-500.0,0.00019998,2]
[324878432,1714392633099,-500.0,0.00019998,2]
[324878434,1714392633109,-500.0,0.00019998,2]
[324878436,1714392633118,-500.0,0.00019998,2]
[324878438,1714392633127,-500.0,0.00019998,2]
[324878440,1714392633136,-500.0,0.00019998,2]
[324878442,1714392633145,-500.0,0.00019998,2]
[324878444,1714392633154,-500.0,0.00019998,2]
[324878446,1714392633163,-538.50102023,0.00019999,3]
[324878448,1714392633172,-97962.06837391,0.00019999,2]
[324878458,1714392633250,-377.55762742,0.00019178,2]
[324878848,1714392638744,-122.44237258,0.00019178,2]
[324878850,1714392638754,-500.0,0.00019178,2]
[324878852,1714392638766,-539.12081915,0.00019178,2]
[324878854,1714392638776,-500.0,0.00019178,2]
[324878856,1714392638785,-631.07119748,0.00019178,2]
[324878858,1714392638795,-278.00917872,0.00019178,2]
[324878860,1714392638805,-645.23019608,0.00019178,2]
[324878862,1714392638814,-500.0,0.00019178,2]
[324878865,1714392638824,-500.0,0.00019178,2]
[324878866,1714392638833,-500.0,0.00019178,2]
[324878868,1714392638843,-500.0,0.00019178,2]
[324878870,1714392638852,-500.0,0.00019178,2]
[324878873,1714392638862,-500.0,0.00019178,2]
[324878874,1714392638871,-235.99227671,0.00019178,2]
[324878876,1714392638881,-500.0,0.00019178,2]
[324878878,1714392638890,-500.0,0.00019178,2]
[324878880,1714392638899,-500.0,0.00019178,2]
[324878882,1714392638910,-391.0091332,0.00019178,2]
[324878884,1714392638919,-500.0,0.00019178,2]
[324878886,1714392638929,-5471.62168675,0.00019999,2]
[324878905,1714392639097,-1251.78323974,0.00019999,2]
[324878907,1714392639109,-59977.94093359,0.00019999,2]
[324878909,1714392639121,-245537.4749981,0.00019999,2]
[324878912,1714392639131,-278.30883524,0.0002,2]
[324878914,1714392639141,-67415.61392424,0.0002,2]
[324878915,1714392639150,-329.93912296,0.0002,2]
[324878917,1714392639160,-525.01331286,0.0002,4]
[324878920,1714392639169,-154.76784823,0.0002,2]
[324878921,1714392639179,-12577.23875182,0.0002,2]
[324878923,1714392639190,-241.68429594,0.0002,2]
[324878925,1714392639200,-80000.0,0.0002,2]
[324878927,1714392639210,-200.0,0.0002,2]
[324878930,1714392639219,-154.76784823,0.0002,2]
[324878931,1714392639228,-250.0,0.00020236,2]
[324878934,1714392639238,-160.11963641,0.00020913,2]
[324878936,1714392639248,-420.0,0.00021857,2]
[324878938,1714392639259,-10000.0,0.00021918,2]
[324878940,1714392639268,-159.19819518,0.00022,2]
[324878952,1714392639380,-521.92194577,0.000223,2]
[324878954,1714392639391,-168.333333,0.00022466,2]
[324878956,1714392639400,-2617.22772058,0.00022834,2]
[324878958,1714392639410,-714.0781204,0.00023,2]
[324878960,1714392639419,-150.0,0.00023236,2]
[324878962,1714392639430,-620.00000094,0.00023701,2]
[324878964,1714392639439,-1168.41033251,0.000239,2]
[324878966,1714392639450,-693.32219262,0.00024,2]
[324878968,1714392639459,-587.0,0.00024043,2]
[324878970,1714392639468,-170.53243632,0.00024634,2]
[324878972,1714392639477,-500.0,0.00024657,2]
[324878974,1714392639487,-380.0,0.00024658,2]
[324878976,1714392639496,-531.81352887,0.00024688,2]
[324878978,1714392639507,-531.81352887,0.00024725,2]
[324878980,1714392639516,-531.81352887,0.00024781,2]
[324878982,1714392639526,-154.6218572,0.00024786,2]
[324878984,1714392639536,-170.53243632,0.00024826,2]
[324878986,1714392639546,-620.00000005,0.00024886,2]
[324878988,1714392639555,-156.18617837,0.00024891,2]
[324878990,1714392639565,-154.76784823,0.00025,2]
[324878992,1714392639574,-154.76784823,0.00025,2]
[324878994,1714392639584,-1835.93152535,0.00025,2]
[324878996,1714392639593,-531.81352887,0.00025004,2]
[324878998,1714392639603,-153.79833288,0.0002505,2]
[324879000,1714392639612,-153.79833288,0.00025141,2]
[324879002,1714392639621,-151.47429953,0.00025156,2]
[324879004,1714392639631,-531.81352887,0.00025261,2]
[324879006,1714392639640,-154.6218572,0.00025313,2]
[324879008,1714392639650,-252.56123453,0.00025371,2]
[324879010,1714392639659,-154.6218572,0.00025456,2]
[324879012,1714392639668,-531.81352887,0.00025458,2]
[324879014,1714392639677,-999.0,0.00025479,2]
[324879016,1714392639687,-156.18617837,0.00025499,2]
[324879017,1714392639700,-158.20865679,0.00025516,2]
[324879019,1714392639710,-156.18617837,0.00025678,2]
[324879021,1714392639719,-2617.22772058,0.00025769,2]
[324879024,1714392639728,-170.53243632,0.00025882,2]
[324879026,1714392639739,-153.79833288,0.00025888,2]
[324879028,1714392639748,-170.53243632,0.00025941,2]
[324879030,1714392639759,-531.81352887,0.0002597,2]
[324879032,1714392639769,-1116.6496876,0.00026,2]
[324879034,1714392639780,-151.47429953,0.00026015,2]
[324879036,1714392639790,-170.53243632,0.0002606,2]
[324879037,1714392639799,-620.0,0.0002613,2]
[324879039,1714392639809,-531.81352887,0.00026162,2]
[324879041,1714392639818,-170.53243632,0.00026224,2]
[324879043,1714392639828,-153.79833288,0.00026316,2]
[324879045,1714392639837,-156.18617837,0.00026344,2]
[324879047,1714392639847,-151.47429953,0.00026388,2]
[324879049,1714392639856,-153.79833288,0.00026432,2]
[324879051,1714392639866,-153.79833288,0.00026441,2]
[324879053,1714392639875,-823.0,0.00026447,2]
[324879055,1714392639886,-154.6218572,0.00026494,2]
[324879058,1714392639895,-531.81352887,0.00026518,2]
[324879060,1714392639905,-531.81352887,0.0002653,2]
[324879061,1714392639915,-999.0,0.00026575,4]
[324879063,1714392639925,-531.81352887,0.00026592,2]
[324879065,1714392639935,-391.10655818,0.000266,2]
[324879067,1714392639944,-153.79833288,0.00026629,2]
[324879070,1714392639954,-156.18617837,0.00026706,2]
[324879071,1714392639964,-154.6218572,0.00026891,2]
[324879074,1714392639974,-151.47429953,0.00026907,2]
[324879076,1714392639984,-170.53243632,0.00026911,2]
[324879077,1714392639994,-7615.11518896,0.0002699,2]
[324879079,1714392640003,-8527.63031331,0.00027,2]
[324879082,1714392640014,-304451.3386196,0.00027,15]
[324879083,1714392640023,-1014.10706898,0.00027,3]
[324879086,1714392640033,-5345.1589257,0.00027,2]
[324879087,1714392640043,-10000.0,0.00027,2]
[324879089,1714392640053,-10000.0,0.00027,2]
[324879091,1714392640062,-10000.0,0.00027,2]
[324879094,1714392640072,-10000.0,0.00027,2]
[324879096,1714392640082,-12084.01768988,0.00027,2]
[324879097,1714392640091,-1610.06024593,0.00027,2]
[324879100,1714392640101,-156.18617837,0.00027007,2]
[324879101,1714392640111,-154.6218572,0.0002709,2]
[324879104,1714392640120,-154.6218572,0.00027141,2]
[324879105,1714392640130,-151.47429953,0.00027219,2]
[324879108,1714392640139,-531.81352887,0.00027259,2]
[324879110,1714392640149,-153.79833288,0.00027264,2]
[324879112,1714392640159,-156.18617837,0.00027266,2]
[324879114,1714392640168,-170.53243632,0.00027272,2]
[324879116,1714392640178,-170.53243632,0.00027315,2]
[324879117,1714392640187,-153.79833288,0.00027322,2]
[324879120,1714392640197,-153.79833288,0.00027341,2]
[324879122,1714392640206,-500.0,0.00027397,2]
[324879126,1714392640215,-166.666666,0.00027397,2]
[324879128,1714392640225,-975.65412207,0.000274,2]
[324879129,1714392640235,-531.81352887,0.00027402,2]
[324879131,1714392640244,-31297.24918352,0.000275,2]
[324879215,1714392641023,-500.0,0.00024657,2]
[324879216,1714392641033,-8881.1135207,0.000275,2]
[324879217,1714392641045,-3122.92370283,0.000275,2]
[324879218,1714392641055,-805.49448618,0.000275,17]
[324879219,1714392641065,-154.6218572,0.00027547,2]
[324879220,1714392641075,-154.6218572,0.00027562,2]
[324879221,1714392641085,-170.53243632,0.00027582,2]
[324879222,1714392641095,-531.81352887,0.00027583,2]
[324879223,1714392641106,-10148.32703334,0.0002763,2]
[324879473,1714392666964,247.11113509,0.00016201,2]
[324879476,1714392903673,300.0,0.00014728,2]
[324879477,1714393020780,300.0,0.00014728,2]
[324879478,1714393320761,300.0,0.00014728,2]
[324879482,1714393681088,300.0,0.00014728,2]
[324879485,1714393756153,-155.05459913,0.00016197,2]
[324879486,1714393756173,-300.0,0.00016198,2]
[324879487,1714393756192,-300.0,0.00016198,2]
[324879488,1714393756212,-158.20610922,0.00016199,2]
[324879489,1714393756231,-1676.92552467,0.00016199,2]
[324879490,1714393756250,-326.79171644,0.00016199,2]
[324879491,1714393756268,-1496.8044313,0.00016199,2]
[324879492,1714393756287,-187.38950934,0.00016199,2]
[324879493,1714393756305,-183.80738667,0.00016199,2]
[324879494,1714393756323,-155.20007848,0.00016199,2]
[324879495,1714393756341,-15672.49505265,0.00016199,2]
[324879496,1714393756360,-6131.63223118,0.000162,2]
[324879497,1714393756379,-7852.5082437,0.00016201,2]
[324879498,1714393756397,-202.16473977,0.00016201,2]
[324879499,1714393756415,-729.7450776,0.00016201,2]
[324879500,1714393756434,-272.63468662,0.000165,2]
[324879501,1714393756452,-79.90829203,0.0001726,2]
[324879550,1714393831858,-86.75837397,0.0001726,2]
[324879552,1714393831867,-189.36782433,0.00018899,2]
[324879554,1714393831877,-2014.09893412,0.000189,2]
[324879556,1714393831886,-160.11963641,0.00018997,2]
[324879558,1714393831896,-239.19602788,0.00019177,2]
[324879560,1714393831906,-160.740167,0.00019178,2]
[324879562,1714393831915,-160.703891,0.00019178,2]
[324879564,1714393831924,-2290.07425556,0.00019869,2]
[324879566,1714393831933,-366.4955471,0.0001988,2]
[324879568,1714393831943,-1575.6250749,0.00019898,2]
[324879570,1714393831952,-155.01275043,0.00019898,2]
[324879572,1714393831962,-154.79876161,0.00019899,2]
[324879574,1714393831971,-300.0,0.00019899,2]
[324879576,1714393831980,-300.0,0.00019899,2]
[324879578,1714393831989,-21419.66535885,0.000199,2]
[324879580,1714393831998,-1708.13,0.00019969,3]
[324879582,1714393832007,-854.06,0.00019969,3]
[324879584,1714393832016,-427.03,0.00019969,3]
[324879586,1714393832027,-213.52,0.00019969,3]
[324879588,1714393832036,-640.56,0.00019969,3]
[324879590,1714393832048,-262.62663425,0.00019978,2]
[324879592,1714393832057,-611.73624575,0.00019978,2]
[324879594,1714393832066,-269.25051012,0.00019979,3]
[324879596,1714393832075,-18830.38487848,0.00019979,2]
[324879598,1714393832087,-15141.43105995,0.00019979,2]
[324879904,1714393837876,-500.0,0.00019978,2]
[324879906,1714393837886,-500.0,0.00019978,2]
[324879908,1714393837895,-382.54637256,0.00019978,2]
[324879910,1714393837905,-500.0,0.00019978,2]
[324879912,1714393837915,-171181.83421611,0.00019979,2]
[324879914,1714393837927,-205047.23907755,0.00019979,2]
[324879916,1714393837936,-42175.65649445,0.0001998,2]
[324879919,1714393837946,-277.75375946,0.0002,2]
[324879921,1714393837955,-10481.03229319,0.0002,2]
[324879922,1714393837964,-67415.61392424,0.0002,2]
[324879924,1714393837973,-241.68429594,0.0002,2]
[324879926,1714393837982,-329.93912296,0.0002,2]
[324879929,1714393837992,-154.76784823,0.0002,2]
[324879931,1714393838002,-320.78044824,0.0002,2]
[324879933,1714393838012,-285.19077408,0.0002,2]
[324879934,1714393838021,-154.82968734,0.0002,2]
[324879937,1714393838034,-154.82968734,0.0002,2]
[324879939,1714393838046,-299.68975861,0.0002,2]
[324879940,1714393838056,-22961.14751909,0.0002,2]
[324879943,1714393838066,-80000.0,0.0002,2]
[324879944,1714393838075,-278.30883524,0.0002,2]
[324879947,1714393838085,-525.01331286,0.0002,4]
[324879948,1714393838095,-151.31843755,0.0002,2]
[324879950,1714393838104,-200.0,0.0002,2]
[324879953,1714393838114,-603.57234398,0.0002091,2]
[324879954,1714393838123,-177.0,0.000213,2]
[324879956,1714393838132,-3416.26,0.00021339,3]
[324879958,1714393838142,-1708.12,0.00021339,3]
[324879960,1714393838151,-854.06,0.00021339,3]
[324879963,1714393838160,-427.04,0.00021339,3]
[324879965,1714393838170,-420.0,0.0002167,2]
[324879966,1714393838179,-420.0,0.00021889,2]
[324879967,1714393838188,-613.1943728,0.00021918,2]
[324879968,1714393838197,-10000.0,0.00021918,2]
[324879969,1714393838206,-159.19819518,0.00022,2]
[324879970,1714393838216,-170.68510943,0.00022,2]
[324879971,1714393838226,-620.00752541,0.00022238,2]
[324879972,1714393838235,-168.333341,0.00022466,2]
[324879973,1714393838245,-607.5,0.00022466,2]
[324879974,1714393838254,-417.0,0.00022564,2]
[324879975,1714393838263,-2290.0742555,0.00022809,2]
[324879976,1714393838272,-714.0781204,0.00023,2]
[324879977,1714393838283,-620.00037627,0.00023349,2]
[324879978,1714393838293,-587.0,0.00023599,2]
[324879979,1714393838302,-2014.09893412,0.000239,2]
[324879980,1714393838312,-160.41577554,0.00024,2]
[324879981,1714393838322,-587.0,0.00024078,2]
[324879982,1714393838332,-151.0,0.00024159,2]
[324879983,1714393838341,-620.00001881,0.00024517,2]
[324879984,1714393838351,-151.47429953,0.0002461,2]
[324879985,1714393838360,-153.79833288,0.00024612,2]
[324879986,1714393838369,-151.47429953,0.00024628,2]
[324879987,1714393838378,-500.0,0.00024657,2]
[324879988,1714393838388,-500.0,0.00024657,2]
[324879989,1714393838398,-380.0,0.00024658,2]
[324879990,1714393838407,-200.0,0.00024658,2]
[324879991,1714393838417,-500.0,0.00024712,2]
[324879992,1714393838425,-156.18617836,0.00024737,2]
[324879993,1714393838434,-500.0,0.00024767,2]
[324879995,1714393838444,-821.97845428,0.00024768,2]
[324879997,1714393838454,-153.79833288,0.00024769,2]
[324879999,1714393838463,-500.0,0.00024821,2]
[324880001,1714393838472,-156.18617836,0.0002483,2]
[324880003,1714393838481,-151.47429953,0.00024831,2]
[324880005,1714393838490,-153.79833288,0.00024855,2]
[324880007,1714393838499,-500.0,0.00024876,2]
[324880009,1714393838508,-160.0,0.00024886,2]